bitfinex-derivatives/quotes_SOLF0:USTF0_20250924
["timestamp","ask_amount","ask_price","bid_price","bid_amount"]
[1758681354044,1.56067477,214.22,214.14,7.72]
[1758681354245,1.56067477,214.21,214.14,7.72]
[1758681354453,115.66,214.23,214.14,7.72]
[1758681354753,1.16770153,214.22,214.14,7.72]
[1758681354954,115.66,214.23,214.14,7.72]
[1758681355257,1.16768402,214.22,214.14,7.72]
[1758681355453,115.66,214.23,214.14,7.72]
[1758681355656,1.16768402,214.22,214.14,7.72]
[1758681355846,7.35,214.24,214.16,7.62]
[1758681356950,14.18220806,214.26,214.17,7.62]
[1758681357156,79.93,214.27,214.17,7.62]
[1758681357355,79.93,214.27,214.21,4.1997]
[1758681358052,79.93,214.27,214.19,4.2002]
[1758681358257,1.16742728,214.26,214.19,4.2002]
[1758681358455,79.93,214.27,214.19,4.2002]
[1758681358852,7.73,214.27,214.21,4.1998]
[1758681359057,352.88,214.31,214.2,7.62]
[1758681359356,116.80729927,214.3,214.2,7.62]
[1758681359657,124.61729927,214.29,214.16,7.62]
[1758681359858,7.73,214.27,214.16,7.62]
[1758681360159,1.16729927,214.26,214.16,7.62]
[1758681360659,7.73,214.27,214.16,7.62]
[1758681360660,7.73,214.27,214.17,7.62]
[1758681361052,7.73,214.27,214.21,4.1998]
[1758681362858,123.43,214.27,214.21,4.1998]
[1758681363456,123.43,214.27,214.13,2.07619153]
[1758681363662,123.43,214.27,214.14,7.62]
[1758681363952,4.199,214.26,214.18,4.2003]
[1758681364159,4.199,214.26,214.14,7.62]
[1758681364752,4.199,214.26,214.19,4.2]
[1758681365455,7.73,214.23,214.13,2.07619153]
[1758681366748,7.73,214.23,214.16,4.2007]
[1758681366961,7.73,214.23,214.16,7.62]
[1758681367756,7.73,214.23,214.19,4.2002]
[1758681367953,7.73,214.23,214.19,11.8202]
[1758681368154,7.73,214.24,214.13,7.62]
[1758681370756,4.2,214.21,214.13,11.8213]
[1758681370957,11.93,214.21,214.13,7.62]
[1758681371762,7.73,214.21,214.13,7.62]
[1758681372359,4.2002,214.2,214.13,7.62]
[1758681372564,4.2002,214.2,214.13,11.8213]
[1758681372864,4.2003,214.19,214.13,7.62]
[1758681373064,9.06077541,214.21,214.13,7.62]
[1758681373560,13.26077541,214.21,214.13,7.62]
[1758681374965,13.26077541,214.21,214.14,4.201]
[1758681376064,7.33,214.26,214.15,7.18]
[1758681376261,1.16755268,214.25,214.18,7.18]
[1758681376467,64.27,214.26,214.18,7.18]
[1758681376983,7.33,214.3,214.21,7.18]
[1758681377162,1.16732298,214.28,214.21,7.18]
[1758681377363,115.66,214.29,214.21,7.18]
[1758681377658,7.33,214.3,214.25,7.18]
[1758681377859,1.16728293,214.29,214.25,7.18]
[1758681378057,123.03,214.3,214.25,7.18]
[1758681378266,1.16728293,214.29,214.25,7.18]
[1758681378471,123.03,214.3,214.25,7.18]
[1758681378765,8.49725191,214.29,214.21,4.1996]
[1758681378964,1.16725191,214.28,214.21,4.1996]
[1758681379466,1.16725191,214.28,214.2,8.51077541]
[1758681379862,7.33,214.29,214.21,7.18]
[1758681380069,115.64,214.29,214.21,7.18]
[1758681380264,366.9959509,214.31,214.21,7.18]
[1758681380472,116.80726651,214.3,214.21,7.18]
[1758681380665,1.16726651,214.29,214.21,7.18]
[1758681380867,1.16726651,214.29,214.23,1.33077541]
[1758681381164,7.33,214.38,214.27,7.18]
[1758681381471,116.80707477,214.37,214.3,8.51077541]
[1758681381664,1.16707477,214.36,214.34,7.18]
[1758681381870,123.01,214.39,214.34,7.18]
[1758681382176,123.01,214.39,214.3,8.51077541]
[1758681382669,4.1967,214.38,214.3,8.51077541]
[1758681382974,7.33,214.37,214.27,5.52937541]
[1758681383266,1.33077541,214.36,214.27,4.1986]
[1758681384270,7.33,214.37,214.3,7.46]
[1758681386074,117.01077541,214.39,214.3,7.46]
[1758681386476,1.33077541,214.36,214.3,7.46]
[1758681388279,9.04077541,214.36,214.23,7.46]
[1758681389766,4.1971,214.35,214.26,4.1988]
[1758681389971,9.04077541,214.36,214.23,7.46]
[1758681389972,1.33077541,214.33,214.23,7.46]
[1758681390172,9.04077541,214.33,214.23,7.46]
[1758681390471,1.33077541,214.33,214.23,7.46]
[1758681390674,116.91077541,214.33,214.23,7.46]
[1758681390875,4.1977,214.32,214.23,11.6592]
[1758681391879,4.1977,214.32,214.23,7.46]
[1758681392075,11.908,214.31,214.23,7.46]
[1758681392682,7.71,214.31,214.23,7.46]
[1758681393784,7.71,214.31,214.23,11.6593]
[1758681394580,7.71,214.36,214.28,7.46]
[1758681394784,1.33077541,214.35,214.28,7.46]
[1758681396980,7.71,214.41,214.28,7.46]
[1758681397186,1.33077541,214.39,214.28,8.79077541]
[1758681397385,1.33077541,214.39,214.3,7.46]
[1758681398390,7.71,214.38,214.3,7.46]
[1758681398887,11.9065,214.38,214.3,7.46]
[1758681399284,115.84,214.37,214.3,7.46]
[1758681400192,11.9065,214.38,214.3,11.658]
[1758681400393,115.84,214.37,214.3,11.658]
[1758681401292,120.0368,214.37,214.3,7.46]
[1758681401694,115.84,214.37,214.3,7.46]
[1758681401892,4.1971,214.36,214.3,7.46]
[1758681402288,7.71,214.38,214.3,7.46]
[1758681402490,115.8,214.37,214.3,7.46]
[1758681403890,7.71,214.38,214.3,7.46]
[1758681404089,83.99,214.38,214.3,7.46]
[1758681404888,4.1959,214.41,214.3,7.46]
[1758681405094,119.9759,214.41,214.3,7.46]
[1758681405394,119.9759,214.41,214.32,1.33077541]
[1758681405589,119.9759,214.41,214.33,7.46]
[1758681405794,119.9559,214.41,214.33,11.6573]
[1758681406994,7.71,214.42,214.35,7.46]
[1758681407896,7.71,214.42,214.35,11.6569]
[1758681408092,353.02,214.44,214.35,8.79077541]
[1758681408292,7.71,214.46,214.4,4.196]
[1758681408494,115.74,214.48,214.39,7.46]
[1758681409094,0.81177541,214.49,214.42,7.46]
[1758681409295,7.71,214.55,214.47,1.33077541]
[1758681409597,7.71,214.55,214.47,5.52537541]
[1758681409798,8.52157663,214.55,214.48,7.46]
[1758681410301,0.81157663,214.55,214.5,1.33077541]
[1758681410694,0.81157663,214.55,214.51,7.46]
[1758681414499,0.81157663,214.55,214.51,7.73]
[1758681414703,7.71,214.6,214.53,7.73]
[1758681415106,0.81137794,214.59,214.53,9.06077541]
[1758681415398,0.81137794,214.59,214.55,7.73]
[1758681415602,0.81137794,214.59,214.54,4.1933]
[1758681416199,0.81137794,214.59,214.55,7.73]
[1758681416408,0.81137794,214.59,214.54,7.73]
[1758681416605,0.81137794,214.59,214.53,1.33077541]
[1758681416805,0.81137794,214.59,214.54,7.73]
[1758681417206,0.81137794,214.59,214.53,1.33077541]
[1758681417401,0.81137794,214.59,214.54,7.73]
[1758681417599,0.81137794,214.59,214.49,65.2451]
[1758681417600,115.68,214.62,214.56,9.06077541]
[1758681417799,116.49129282,214.62,214.56,9.06077541]
[1758681418301,7.51,214.61,214.52,1.33077541]
[1758681418700,7.51,214.61,214.51,7.73]
[1758681418899,7.51,214.61,214.51,9.06077541]
[1758681419805,4.1926,214.59,214.51,9.06077541]
[1758681420201,7.51,214.58,214.51,9.06077541]
[1758681420407,7.51,214.58,214.51,13.25457541]
[1758681420705,124.00129282,214.62,214.55,7.73]
[1758681421008,8.32129282,214.62,214.55,7.73]
[1758681421903,8.32129282,214.62,214.56,4.1929]
[1758681422809,0.81129282,214.62,214.56,4.1929]
[1758681423101,0.81129282,214.62,214.54,1.33077541]
[1758681423310,0.81129282,214.62,214.53,65.2332]
[1758681423311,7.51,214.66,214.58,7.73]
[1758681423502,0.81121718,214.65,214.58,7.73]
[1758681423702,0.81121718,214.65,214.61,7.73]
[1758681424610,0.81121718,214.65,214.62,7.73]
[1758681425106,0.81121718,214.65,214.61,7.73]
[1758681425504,47.28,214.67,214.63,4.1914]
[1758681425706,47.28,214.67,214.64,7.73]
[1758681426110,7.51,214.7,214.64,7.73]
[1758681426505,0.81100922,214.69,214.6,11.922]
[1758681426708,0.81100922,214.69,214.6,7.73]
[1758681427811,0.81100922,214.69,214.61,4.1918]
[1758681428008,0.81100922,214.69,214.6,7.73]
[1758681428513,0.81100922,214.69,214.63,65.2034]
[1758681428810,0.81097142,214.72,214.65,7.73]
[1758681429106,0.81097142,214.72,214.68,4.1905]
[1758681429507,0.81097142,214.72,214.69,7.73]
[1758681429708,0.81097142,214.72,214.67,4.1908]
[1758681429913,0.81097142,214.72,214.68,7.73]
[1758681430307,0.81097142,214.72,214.69,11.9204]
[1758681430807,0.81097142,214.72,214.69,4.1904]
[1758681431012,0.81097142,214.72,214.7,7.73]
[1758681431514,0.81097142,214.72,214.66,11.9209]
[1758681432317,0.81097142,214.72,214.67,4.1907]
[1758681432608,0.81097142,214.72,214.65,7.73]
[1758681433211,0.81097142,214.72,214.65,72.3872]
[1758681433413,84.14,214.73,214.68,7.19]
[1758681433714,360.03,214.78,214.68,7.19]
[1758681434113,0.81072581,214.77,214.71,7.19]
[1758681435811,0.81072581,214.77,214.72,4.1897]
[1758681436013,0.81072581,214.77,214.72,11.3797]
[1758681436214,0.81072581,214.77,214.7,7.19]
[1758681436419,122.63,214.81,214.73,7.19]
[1758681436618,123.44058418,214.81,214.73,7.19]
[1758681437213,123.44058418,214.81,214.76,4.1891]
[1758681437413,116.31058418,214.81,214.76,4.1891]
[1758681437613,7.13,214.8,214.69,2.06750229]
[1758681438420,7.13,214.8,214.72,4.1897]
[1758681439820,11.3184,214.8,214.72,4.1897]
[1758681440416,11.3184,214.8,214.73,4.1895]
[1758681440617,7.13,214.8,214.73,7.19]
[1758681440924,116.31058418,214.81,214.77,4.1888]
[1758681441317,116.31058418,214.81,214.74,7.19]
[1758681442315,7.13,214.8,214.76,4.1889]
[1758681442916,7.13,214.8,214.69,7.19]
[1758681443621,9.70750229,214.79,214.64,7.75]
[1758681443923,7.64,214.74,214.64,7.75]
[1758681444116,7.64,214.72,214.64,7.75]
[1758681444517,7.64,214.69,214.6,7.75]
[1758681446221,7.64,214.69,214.63,4.1914]
[1758681446421,7.64,214.69,214.6,7.75]
[1758681448811,65.1677,214.75,214.6,7.75]
[1758681448812,7.64,214.76,214.6,7.75]
[1758681449017,1.165025,214.75,214.65,7.75]
[1758681449213,1.16484666,214.74,214.65,7.75]
[1758681449422,7.64,214.76,214.65,7.75]
[1758681449725,1.16484639,214.75,214.69,4.1903]
[1758681449914,7.64,214.73,214.65,7.75]
[1758681450121,7.64,214.71,214.62,65.2064]
[1758681451526,7.64,214.71,214.67,4.1907]
[1758681452115,7.64,214.75,214.64,65.1996]
[1758681452322,7.64,214.75,214.65,7.75]
[1758681453821,7.64,214.75,214.64,65.1996]
[1758681453822,12.63878418,214.81,214.69,7.75]
[1758681454125,8.45058418,214.81,214.69,7.75]
[1758681456025,4.1884,214.8,214.73,4.1896]
[1758681456718,8.45058418,214.81,214.71,7.75]
[1758681456919,8.45058418,214.81,214.73,7.75]
[1758681457320,8.45058418,214.81,214.75,4.1893]
[1758681459027,8.45058418,214.81,214.76,7.75]
[1758681459426,8.45058418,214.81,214.73,65.1729]
[1758681459632,0.81058418,214.81,214.74,7.75]
[1758681460128,0.81058418,214.81,214.76,4.189]
[1758681460325,0.81058418,214.81,214.77,7.75]
[1758681460529,8.45058418,214.81,214.71,7.75]
[1758681460731,8.45058418,214.81,214.74,4.1893]
[1758681461732,8.45058418,214.81,214.75,4.1891]
[1758681463028,8.45058418,214.81,214.74,7.75]
[1758681463327,0.81058418,214.81,214.76,7.75]
[1758681463535,0.81058418,214.81,214.78,4.1886]
[1758681464632,0.81058418,214.81,214.79,11.9383]
[1758681465023,0.81058418,214.81,214.79,4.1883]
[1758681465222,0.81058418,214.81,214.77,4.1889]
[1758681465529,4.1884,214.8,214.71,7.75]
[1758681466834,4.1886,214.79,214.71,7.75]
[1758681467030,11.8286,214.79,214.71,7.75]
[1758681468035,11.8286,214.79,214.71,11.9399]
[1758681468437,11.8286,214.79,214.72,4.1897]
[1758681470141,11.8286,214.79,214.73,4.1895]
[1758681470337,7.64,214.79,214.71,7.75]
[1758681470739,7.64,214.79,214.75,4.1891]
[1758681471044,115.6,214.8,214.76,7.75]
[1758681472642,115.6,214.8,214.73,72.923]
[1758681472836,115.6,214.8,214.73,7.75]
[1758681473142,123.24,214.8,214.73,7.75]
[1758681473940,123.24,214.8,214.74,4.1894]
[1758681476850,7.35,214.79,214.69,7.57]
[1758681478752,7.35,214.79,214.73,4.1895]
[1758681479054,7.35,214.79,214.69,7.57]
[1758681479357,7.35,214.79,214.71,4.19]
[1758681479849,11.5386,214.79,214.69,7.57]
[1758681480755,7.35,214.79,214.7,4.1902]
[1758681481558,7.35,214.75,214.7,4.1902]
[1758681481748,7.35,214.75,214.68,4.1906]
[1758681482356,7.35,214.75,214.65,7.57]
[1758681483256,4.1892,214.76,214.7,4.1901]
[1758681483455,4.1892,214.76,214.65,7.57]
[1758681483653,7.35,214.75,214.67,65.1908]
[1758681483852,7.35,214.79,214.72,4.1897]
[1758681484853,7.35,214.79,214.7,7.57]
[1758681485053,0.81058418,214.81,214.72,7.57]
[1758681485854,0.81058418,214.81,214.75,7.57]
[1758681486253,7.35,214.8,214.7,7.57]
[1758681486554,2.87808647,214.81,214.66,7.57]
[1758681486860,7.35,214.8,214.66,7.57]
[1758681487752,7.79,214.76,214.62,76.47904012]
[1758681487953,7.79,214.74,214.62,76.47904012]
[1758681488149,99.6293,214.75,214.69,4.1903]
[1758681488554,7.79,214.74,214.69,4.1903]
[1758681489052,99.6293,214.75,214.69,4.1903]
[1758681489256,7.79,214.8,214.68,7.36]
[1758681489452,7.79,214.8,214.69,65.1847]
[1758681490861,11.9784,214.8,214.73,4.1895]
[1758681491258,11.9784,214.8,214.69,65.1847]
[1758681491760,11.9784,214.8,214.7,7.36]
[1758681492161,7.79,214.78,214.72,4.1898]
[1758681493354,7.79,214.79,214.7,7.36]
[1758681494250,7.79,214.79,214.71,65.1787]
[1758681494450,7.79,214.79,214.72,7.36]
[1758681494855,7.79,214.79,214.68,7.36]
[1758681495256,4.1889,214.78,214.72,4.1898]
[1758681496460,7.79,214.73,214.65,11.27354012]
[1758681496658,9.11424628,214.77,214.67,7.36]
[1758681496854,65.69424628,214.77,214.67,7.36]
[1758681497454,1.32424628,214.77,214.69,72.5448]
[1758681498663,1.32424628,214.77,214.72,4.1897]
[1758681498861,7.79,214.76,214.72,4.1897]
[1758681499061,1.32424628,214.77,214.72,4.1897]
[1758681499257,7.79,214.76,214.72,4.1897]
[1758681499565,1.32424628,214.77,214.69,7.36]
[1758681500366,127.5784,214.8,214.69,7.36]
[1758681500367,9.11424628,214.8,214.72,7.36]
[1758681501565,7.79,214.8,214.77,4.1888]
[1758681503571,0.81058418,214.81,214.77,12.0288]
[1758681503771,8.41058418,214.81,214.77,12.0288]
[1758681503964,0.81058418,214.81,214.77,4.1888]
[1758681504265,8.41058418,214.81,214.77,4.1888]
[1758681504571,7.6,214.8,214.77,4.1888]
[1758681505868,0.81058418,214.81,214.79,4.1885]
[1758681507367,0.81058418,214.81,214.8,7.84]
[1758681507962,0.81058418,214.81,214.79,4.1885]
[1758681508566,0.81058418,214.81,214.79,12.0285]
[1758681509364,0.81058418,214.81,214.77,4.1888]
[1758681509573,7.6,214.79,214.73,7.84]
[1758681510568,2.13483046,214.81,214.73,7.84]
[1758681510771,2.13483046,214.81,214.76,4.189]
[1758681510972,9.73483046,214.81,214.76,12.029]
[1758681511473,7.6,214.8,214.76,12.029]
[1758681512264,7.6,214.8,214.76,4.189]
[1758681512674,7.6,214.8,214.72,7.84]
[1758681513375,7.6,214.8,214.75,7.84]
[1758681513970,0.81058418,214.81,214.74,7.84]
[1758681514165,0.81058418,214.81,214.75,1.32424628]
[1758681514468,0.81058418,214.81,214.74,7.84]
[1758681514669,0.81058418,214.81,214.76,4.1891]
[1758681514875,7.6,214.8,214.76,4.1891]
[1758681515174,2.13483046,214.81,214.76,4.1891]
[1758681515376,7.6,214.8,214.76,4.1891]
[1758681515672,7.6,214.8,214.7,9.16424628]
[1758681516871,7.6,214.78,214.7,1.32424628]
[1758681517174,2.13483046,214.81,214.71,7.84]
[1758681517374,115.42,214.8,214.71,7.84]
[1758681518769,115.42,214.8,214.75,4.1891]
[1758681518978,123.02,214.8,214.75,12.0291]
[1758681519678,7.6,214.79,214.75,12.0291]
[1758681521069,7.6,214.79,214.75,4.1891]
[1758681521280,7.6,214.79,214.72,4.1898]
[1758681521581,7.6,214.79,214.71,7.84]
[1758681521876,115.34,214.8,214.72,7.84]
[1758681522274,0.81058418,214.81,214.74,7.84]
[1758681522471,0.81058418,214.81,214.76,9.16424628]
[1758681522679,0.81058418,214.81,214.77,7.84]
[1758681522879,0.81058418,214.81,214.79,12.0283]
[1758681523380,0.81058418,214.81,214.8,7.84]
[1758681523579,116.68424628,214.86,214.8,7.84]
[1758681523994,0.81039542,214.85,214.8,7.84]
[1758681524782,0.81039542,214.85,214.82,4.1878]
[1758681524982,0.81039542,214.85,214.8,7.84]
[1758681525680,0.81039542,214.85,214.79,1.32424628]
[1758681525876,0.81039542,214.85,214.83,4.1875]
[1758681526771,0.81039542,214.85,214.83,12.0275]
[1758681528980,115.38,214.89,214.85,4.1872]
[1758681529179,115.38,214.89,214.85,12.0272]
[1758681529381,0.81029164,214.88,214.82,1.32424628]
[1758681529580,0.81029164,214.88,214.85,12.0272]
[1758681529880,0.81029164,214.88,214.86,7.84]
[1758681530977,0.81029164,214.88,214.87,7.84]
[1758681534384,7.32,214.87,214.81,1.32424628]
[1758681534688,7.32,214.87,214.8,7.5]
[1758681535881,7.32,214.87,214.81,4.188]
[1758681536082,8.64424628,214.87,214.76,1.32424628]
[1758681536283,8.64424628,214.87,214.77,7.5]
[1758681537788,4.1876,214.84,214.77,11.6888]
[1758681537987,115.26,214.83,214.77,11.6888]
[1758681540184,7.32,214.82,214.78,4.1885]
[1758681540585,7.32,214.82,214.78,11.6885]
[1758681541983,8.64424628,214.82,214.75,7.5]
[1758681542190,8.64424628,214.82,214.74,7.5]
[1758681542694,7.32,214.81,214.77,11.6889]
[1758681542882,1.32424628,214.82,214.77,11.6889]
[1758681543087,7.32,214.81,214.77,11.6889]
[1758681543387,1.32424628,214.82,214.77,11.6889]
[1758681543590,1.32424628,214.82,214.75,4.1892]
[1758681543591,7.32,214.81,214.75,4.1892]
[1758681543787,7.32,214.81,214.73,8.82424628]
[1758681545794,115.26,214.83,214.76,4.1889]
[1758681545995,7.32,214.82,214.76,4.1889]
[1758681546795,7.32,214.81,214.73,13.01374628]
[1758681547195,7.32,214.81,214.73,8.82424628]
[1758681548798,7.32,214.81,214.77,11.3888]
[1758681549495,1.32424628,214.82,214.77,4.1888]
[1758681549701,7.25,214.81,214.75,4.1892]
[1758681550199,7.25,214.79,214.69,7.2]
[1758681550600,7.25,214.76,214.69,7.2]
[1758681550790,115.26,214.75,214.69,7.2]
[1758681551391,116.58424628,214.75,214.65,8.52424628]
[1758681551595,7.25,214.74,214.65,8.52424628]
[1758681552496,11.4396,214.74,214.68,4.1906]
[1758681553405,11.4396,214.74,214.66,4.1909]
[1758681553803,65.1449,214.83,214.69,1.32424628]
[1758681553804,7.25,214.83,214.69,1.32424628]
[1758681554002,1.32424628,214.8,214.7,7.2]
[1758681554208,1.32424628,214.77,214.64,3.91097105]
[1758681554409,122.53,214.76,214.66,1.32424628]
[1758681554805,7.25,214.76,214.68,1.32424628]
[1758681555110,23.84,214.78,214.71,7.2]
[1758681555300,7.25,214.81,214.72,1.32424628]
[1758681555501,55.58,214.8,214.72,1.32424628]
[1758681556505,55.58,214.8,214.71,7.2]
[1758681556807,55.58,214.8,214.75,4.1891]
[1758681557110,7.25,214.84,214.73,7.2]
[1758681557304,69.92,214.83,214.73,7.2]
[1758681558304,7.25,214.82,214.75,4.1892]
[1758681558603,7.25,214.82,214.73,7.2]
[1758681558805,45.4,214.82,214.78,4.1885]
[1758681559007,52.65,214.82,214.73,7.2]
[1758681560810,52.65,214.82,214.76,4.189]
[1758681562112,52.65,214.82,214.74,4.1894]
[1758681562309,52.65,214.82,214.69,7.2]
[1758681562605,4.1885,214.79,214.71,4.1899]
[1758681562798,7.25,214.78,214.69,7.2]
[1758681563204,7.25,214.78,214.71,4.1899]
[1758681563714,11.4388,214.78,214.71,4.1899]
[1758681564715,4.189,214.77,214.71,4.1899]
[1758681564912,7.48,214.76,214.71,4.1899]
[1758681566110,4.189,214.77,214.71,4.1899]
[1758681566515,7.48,214.76,214.71,4.1899]
[1758681566915,4.189,214.77,214.71,4.1899]
[1758681567407,7.48,214.76,214.71,4.1899]
[1758681567614,11.669,214.77,214.71,4.1899]
[1758681575122,7.48,214.77,214.68,72.8371]
[1758681575424,38.1,214.81,214.71,7.65]
[1758681576420,38.1,214.81,214.76,11.8389]
[1758681576421,7.48,214.8,214.76,11.8389]
[1758681576730,83.8,214.82,214.73,7.65]
[1758681576917,7.48,214.81,214.73,7.65]
[1758681577721,7.48,214.79,214.73,4.1897]
[1758681579426,7.48,214.79,214.69,7.65]
[1758681579427,7.48,214.77,214.71,4.19]
[1758681579819,7.48,214.77,214.69,7.65]
[1758681580219,7.48,214.77,214.72,4.1897]
[1758681580424,7.48,214.77,214.69,7.65]
[1758681580722,11.669,214.77,214.71,4.1899]
[1758681582417,7.48,214.78,214.72,4.1897]
[1758681583827,11.6688,214.78,214.72,4.1897]
[1758681584414,7.48,214.78,214.73,11.8395]
[1758681584618,112.86,214.8,214.7,7.65]
[1758681584826,115.26,214.8,214.7,7.65]
[1758681585828,115.26,214.8,214.74,4.1893]
[1758681586821,7.48,214.79,214.75,4.1891]
[1758681587128,7.48,214.79,214.75,11.8391]
[1758681587525,119.4484,214.8,214.73,4.1896]
[1758681587733,7.48,214.79,214.73,4.1896]
[1758681588429,4.1888,214.78,214.73,4.1896]
[1758681588729,7.48,214.77,214.71,11.84]
[1758681588925,7.48,214.77,214.71,4.19]
[1758681589628,7.48,214.77,214.67,11.56097105]
[1758681589629,7.48,214.77,214.67,7.65]
[1758681589830,7.48,214.77,214.67,11.56097105]
[1758681590824,7.48,214.77,214.67,7.65]
[1758681591322,72.6421,214.77,214.65,3.91097105]
[1758681591525,67.23774588,214.74,214.63,11.56097105]
[1758681591720,122.74,214.73,214.63,7.65]
[1758681592325,11.6705,214.69,214.63,7.65]
[1758681593333,7.42,214.67,214.61,8.10277105]
[1758681593535,7.42,214.67,214.59,7.73]
[1758681593536,118.98295525,214.66,214.59,7.73]
[1758681593831,115.26,214.66,214.59,7.73]
[1758681594031,122.68,214.66,214.61,11.922]
[1758681594335,7.42,214.65,214.61,11.922]
[1758681594626,7.42,214.65,214.61,4.192]
[1758681595224,122.68,214.65,214.61,4.192]
[1758681595827,122.68,214.65,214.61,11.922]
[1758681596029,115.26,214.67,214.58,65.2181]
[1758681596235,7.42,214.66,214.59,7.73]
[1758681596830,7.42,214.66,214.62,4.1917]
[1758681597028,115.26,214.67,214.62,4.1917]
[1758681597428,115.26,214.67,214.64,7.73]
[1758681597628,7.42,214.67,214.63,4.1915]
[1758681597828,58.38,214.68,214.64,7.73]
[1758681598029,58.38,214.68,214.65,11.9212]
[1758681598224,115.28,214.69,214.65,11.9212]
[1758681598425,115.28,214.69,214.65,4.1912]
[1758681598629,7.42,214.68,214.65,4.1912]
[1758681599124,122.7,214.69,214.63,4.1916]
[1758681600336,122.7,214.69,214.61,4.1919]
[1758681600337,7.42,214.67,214.61,4.1919]
[1758681600536,7.42,214.67,214.58,65.2177]
[1758681600731,115.28,214.66,214.59,7.73]
[1758681601335,7.42,214.69,214.65,4.191]
[1758681601636,115.28,214.68,214.66,7.73]
[1758681602027,115.28,214.68,214.6,65.2122]
[1758681602232,115.28,214.68,214.61,7.73]
[1758681602641,9.48764588,214.73,214.66,4.1909]
[1758681602836,115.28,214.69,214.66,4.1909]
[1758681603142,7.42,214.68,214.64,7.73]
[1758681604235,7.42,214.68,214.65,4.1911]
[1758681604435,115.28,214.69,214.65,7.73]
[1758681604838,122.7,214.69,214.65,7.73]
[1758681605536,122.7,214.69,214.65,11.9212]
[1758681605735,7.42,214.68,214.65,4.1912]
[1758681606239,115.28,214.69,214.65,4.1912]
[1758681606639,7.42,214.68,214.65,4.1912]
[1758681607236,7.42,214.68,214.66,4.1908]
[1758681607539,115.28,214.69,214.66,4.1908]
[1758681607738,122.7,214.69,214.66,4.1908]
[1758681609044,7.42,214.68,214.66,4.1908]
[1758681611648,7.42,214.68,214.63,4.1915]
[1758681611845,7.42,214.68,214.61,7.73]
[1758681611846,115.28,214.69,214.57,7.73]
[1758681612045,7.42,214.68,214.57,7.73]
[1758681612445,1.16510774,214.67,214.57,72.951]
[1758681612646,7.42,214.65,214.57,7.73]
[1758681613150,122.54,214.66,214.6,4.1922]
[1758681613345,7.28,214.64,214.6,4.1922]
[1758681613550,7.28,214.65,214.54,11.73097105]
[1758681613855,11.4717,214.63,214.56,4.1929]
[1758681614150,1.16518384,214.62,214.56,4.1929]
[1758681614347,1.16518384,214.62,214.54,7.82]
[1758681614348,122.54,214.61,214.54,7.82]
[1758681614659,115.26,214.63,214.56,7.82]
[1758681615947,115.26,214.63,214.57,65.2207]
[1758681616151,115.26,214.63,214.58,7.82]
[1758681616346,115.26,214.63,214.57,65.2207]